bitfinex-derivatives/quotes_BNBF0:USTF0_20250406
["timestamp","ask_amount","ask_price","bid_price","bid_amount"]
[1743927595914,0.476,588.51,587.95,0.29569835]
[1743927596116,0.476,588.51,587.96,0.28809453]
[1743927596410,1.2339657,588.5,587.96,0.28809453]
[1743927596610,1.2339657,588.49,587.96,0.28809453]
[1743927596910,0.476,588.51,587.96,0.28809453]
[1743927597615,0.476,588.51,587.97,0.064]
[1743927597814,1.23404374,588.5,587.97,0.064]
[1743927598009,1.23404374,588.5,587.98,0.28809453]
[1743927598210,1.23404374,588.5,587.97,0.064]
[1743927598413,0.476,588.51,587.98,0.28809458]
[1743927599214,0.476,588.51,587.97,0.064]
[1743927599411,0.476,588.51,587.98,0.28809453]
[1743927599710,0.476,588.51,587.99,0.28809439]
[1743927599914,1.23410111,588.5,588.0,0.28809439]
[1743927600114,1.23410111,588.5,587.98,0.28809439]
[1743927600316,0.476,588.51,587.99,0.28809439]
[1743927600515,0.476,588.51,587.98,0.28809439]
[1743927601015,0.476,588.51,588.01,1.26816657]
[1743927601016,1.23406169,588.5,588.01,1.26816657]
[1743927601217,1.23406169,588.5,588.02,0.28809439]
[1743927601418,1.23406169,588.49,588.02,0.28809439]
[1743927602112,0.476,588.51,588.01,1.26816657]
[1743927602319,0.476,588.51,588.02,0.28810207]
[1743927602512,1.23404364,588.5,588.02,0.28810207]
[1743927603115,1.23404364,588.49,588.02,0.28810207]
[1743927603415,0.415,588.53,588.02,0.28810207]
[1743927603818,0.29571343,588.78,588.0,0.28810207]
[1743927604016,0.57741385,588.77,588.01,0.28810207]
[1743927604218,1.81143738,588.76,588.0,0.28810207]
[1743927604420,0.57741385,588.75,588.0,0.28810207]
[1743927604615,1.81143738,588.74,588.0,0.28810207]
[1743927604816,0.57741385,588.73,588.0,0.28810207]
[1743927605021,0.57741385,588.72,588.0,0.28810207]
[1743927605221,1.81143738,588.71,588.0,0.28810207]
[1743927605421,1.81143738,588.71,587.97,1.33216657]
[1743927605422,0.57741385,588.7,588.01,0.28810223]
[1743927605621,1.23402353,588.71,587.97,1.33216657]
[1743927605622,0.57741385,588.69,587.98,0.28810223]
[1743927605821,1.81143738,588.68,587.99,0.28810223]
[1743927606021,0.57741385,588.67,587.98,0.28810223]
[1743927606222,1.81143738,588.66,587.99,0.28810223]
[1743927606522,1.81143738,588.66,587.97,1.33216657]
[1743927606523,0.57741385,588.65,588.0,0.28810223]
[1743927606722,0.57741385,588.64,587.98,0.28810223]
[1743927606923,0.57741385,588.63,587.97,1.33216657]
[1743927607121,1.81143738,588.62,588.0,1.26816657]
[1743927607321,0.57741385,588.61,588.01,0.28809845]
[1743927607622,1.81143738,588.6,588.01,0.28809845]
[1743927607918,0.57741385,588.59,588.01,0.28809845]
[1743927608118,0.57741385,588.58,588.01,0.28809845]
[1743927608322,1.81143738,588.57,588.01,0.28809845]
[1743927608522,0.57741385,588.56,588.01,0.28809845]
[1743927608823,0.57741385,588.55,588.01,0.28809845]
[1743927609121,1.23402353,588.54,588.01,1.55626502]
[1743927609321,1.23402353,588.53,588.02,0.28809845]
[1743927610423,1.23402353,588.52,588.02,0.28809845]
[1743927610924,0.502,588.61,588.02,0.28809845]
[1743927611125,1.81018822,588.6,588.02,0.28809845]
[1743927611324,1.81018822,588.59,588.02,0.28809845]
[1743927611524,1.81018822,588.58,588.02,0.28809845]
[1743927611726,1.23317163,588.57,588.02,0.28809845]
[1743927611925,1.23317163,588.57,587.87,1.26816657]
[1743927611926,1.23317163,588.56,587.88,0.28809845]
[1743927612123,1.23317163,588.55,587.92,0.29566695]
[1743927612324,1.23317163,588.54,587.93,0.28809845]
[1743927612723,1.23317163,588.53,587.93,0.28809845]
[1743927613126,1.23317163,588.52,587.93,0.28809845]
[1743927613527,1.23317163,588.51,587.93,0.28809845]
[1743927613729,0.502,588.61,587.93,0.28809845]
[1743927614028,0.57697874,588.6,587.94,0.28809845]
[1743927614229,1.81005981,588.59,587.93,0.28809845]
[1743927614428,0.57697593,588.58,587.95,0.064]
[1743927614628,1.81005981,588.57,587.96,0.28809845]
[1743927614829,1.23308388,588.57,587.96,0.28809845]
[1743927615030,1.23308388,588.56,587.96,0.28809845]
[1743927615430,1.23308388,588.55,587.97,0.28808812]
[1743927615631,1.23308388,588.55,587.98,0.28808812]
[1743927615830,1.23308388,588.54,587.96,0.28808812]
[1743927616029,1.23308388,588.54,587.97,0.28808812]
[1743927616229,1.23308388,588.53,587.96,0.28808812]
[1743927616832,1.23308388,588.52,587.96,0.28808812]
[1743927617132,1.23308388,588.51,587.96,0.28808812]
[1743927617429,0.502,588.61,587.96,0.28808812]
[1743927617634,0.5771409,588.6,587.95,0.064]
[1743927617930,0.5771409,588.59,587.96,0.28808879]
[1743927618135,0.5771409,588.58,587.96,0.28808879]
[1743927618336,0.5771409,588.57,587.96,0.28808879]
[1743927618537,1.23337361,588.56,587.96,0.28808879]
[1743927618937,1.23337361,588.55,587.96,0.28808879]
[1743927619340,1.23337361,588.54,587.96,0.28808879]
[1743927619833,1.23337361,588.53,587.96,0.28808879]
[1743927620635,1.23337361,588.52,587.96,0.28808879]
[1743927621140,0.502,588.61,587.96,0.28808879]
[1743927621943,0.502,588.61,587.95,0.064]
[1743927622142,0.502,588.61,587.96,0.28803948]
[1743927623144,0.57696667,588.6,587.95,0.35965188]
[1743927623344,0.502,588.61,587.95,0.35965188]
[1743927623538,0.57695748,588.6,587.95,0.35965188]
[1743927623742,1.23304604,588.6,587.95,0.35965188]
[1743927624244,1.23304604,588.59,587.95,0.35965188]
[1743927624744,0.502,588.61,587.95,0.35965188]
[1743927624745,1.23304604,588.58,587.95,0.35965188]
[1743927625243,1.23304604,588.57,587.95,0.35965188]
[1743927625644,1.23304604,588.57,587.95,0.064]
[1743927625844,1.23304604,588.56,587.95,0.064]
[1743927626346,1.23304604,588.55,587.95,0.064]
[1743927626645,0.502,588.61,587.95,0.064]
[1743927627046,0.502,588.61,587.95,0.35973228]
[1743927627846,1.23299168,588.6,587.95,0.35973228]
[1743927628447,1.23299168,588.59,587.95,0.35973228]
[1743927628645,1.23299168,588.59,587.95,0.064]
[1743927629042,1.23299168,588.58,587.95,0.35968454]
[1743927629748,0.57692582,588.66,587.95,0.35968454]
[1743927629950,0.57691423,588.65,587.95,0.35968454]
[1743927630147,0.546,588.67,587.95,0.35968454]
[1743927630345,1.23290417,588.66,587.95,0.35968454]
[1743927630849,1.23290417,588.65,587.96,0.28804228]
[1743927631350,0.546,588.67,587.96,0.28804228]
[1743927631850,1.2327355,588.66,587.96,0.28804228]
[1743927632051,1.2327355,588.66,587.97,0.28803886]
[1743927632246,1.2327355,588.66,587.96,0.28803886]
[1743927632550,1.7477355,588.65,587.96,0.28803886]
[1743927632944,1.2327355,588.64,587.96,0.28803886]
[1743927633150,0.515,588.65,587.96,0.28803886]
[1743927634751,0.515,588.65,587.98,1.26816657]
[1743927634952,0.515,588.65,587.99,0.28803886]
[1743927635350,0.515,588.65,588.0,0.28802]
[1743927635654,0.515,588.65,588.01,0.28802]
[1743927635855,0.515,588.65,587.99,0.28802]
[1743927637558,0.515,588.65,588.0,0.28802]
[1743927637758,0.515,588.65,587.96,0.28802]
[1743927638053,0.515,588.65,587.97,0.5836317]
[1743927638254,0.515,588.65,587.98,0.28802]
[1743927638654,0.515,588.65,587.97,0.2956117]
[1743927638853,0.515,588.65,587.98,0.28801988]
[1743927640359,0.515,588.65,587.99,0.28802026]
[1743927640560,0.515,588.65,587.99,0.064]
[1743927640757,0.515,588.65,588.0,0.28802026]
[1743927641961,0.515,588.65,588.01,0.28800884]
[1743927642258,0.515,588.65,588.02,0.28800884]
[1743927642661,0.515,588.65,588.03,0.28800884]
[1743927642861,0.515,588.65,588.0,0.28800884]
[1743927643561,0.674,588.64,588.0,0.62814489]
[1743927643761,0.674,588.64,588.01,0.28800884]
[1743927643955,0.674,588.64,588.01,0.6281391]
[1743927644158,0.674,588.64,588.02,0.28800884]
[1743927645361,0.674,588.64,588.03,0.28798825]
[1743927645557,0.674,588.64,588.04,0.28798825]
[1743927645757,0.674,588.64,588.02,0.28798825]
[1743927645962,0.674,588.64,588.03,0.28798825]
[1743927646159,0.674,588.64,588.04,0.34011291]
[1743927646359,0.674,588.64,588.05,0.28798825]
[1743927646562,0.674,588.64,588.06,0.34010135]
[1743927646864,0.674,588.64,588.07,0.28798825]
[1743927647064,0.674,588.64,588.07,0.62808381]
[1743927647464,0.674,588.64,588.08,0.28798825]
[1743927648661,0.674,588.64,588.07,0.34009556]
[1743927648866,0.674,588.64,588.08,0.28796982]
[1743927650066,0.674,588.64,588.08,1.55613639]
[1743927650265,0.674,588.64,588.08,1.26816657]
[1743927650463,0.674,588.64,588.09,0.28797069]
[1743927652873,0.674,588.64,588.08,0.28797069]
[1743927653174,0.674,588.64,588.09,0.28797069]
[1743927653473,0.674,588.64,588.1,0.28797069]
[1743927653769,0.674,588.64,588.07,0.63566708]
[1743927653973,0.674,588.64,588.08,0.28797076]
[1743927655472,0.674,588.64,588.09,0.28797591]
[1743927655674,0.674,588.64,588.08,0.28797591]
[1743927655875,0.674,588.64,588.09,0.28797591]
[1743927656176,0.674,588.64,588.1,0.28797591]
[1743927656473,0.674,588.64,588.09,0.28797591]
[1743927656675,0.674,588.64,588.1,0.28797591]
[1743927656971,0.674,588.64,588.11,0.28797591]
[1743927657175,0.674,588.64,588.09,0.28797591]
[1743927657876,0.674,588.64,588.1,0.28797622]
[1743927658175,0.674,588.64,588.11,0.28797622]
[1743927658376,0.674,588.64,588.12,0.28797622]
[1743927658672,0.674,588.64,588.13,0.28797622]
[1743927658976,0.674,588.64,588.14,0.28797569]
[1743927659172,0.674,588.64,588.11,0.28797569]
[1743927659478,0.515,588.65,588.11,0.28797569]
[1743927659876,0.515,588.65,588.1,0.29558659]
[1743927660077,0.515,588.65,588.11,0.28797556]
[1743927660474,1.22867043,588.93,588.11,0.28797556]
[1743927660678,0.29554893,589.16,588.11,0.28797556]
[1743927660679,1.22867043,588.92,588.11,0.28797556]
[1743927660878,0.57476959,588.91,588.11,0.28797556]
[1743927661078,1.80344002,588.9,588.11,0.28797556]
[1743927661275,1.22867043,588.9,588.11,0.28797556]
[1743927661678,0.57476959,588.89,588.1,1.26816657]
[1743927661879,0.57476959,588.89,588.11,0.28800488]
[1743927662179,1.80344002,588.88,588.11,0.28800488]
[1743927662379,1.22867043,588.88,588.1,1.5637519]
[1743927662579,0.57476959,588.87,588.11,0.28801355]
[1743927662781,0.57476959,588.86,588.11,0.28801355]
[1743927663081,0.57476959,588.85,588.11,0.28801355]
[1743927663280,0.57476959,588.84,588.11,0.28801355]
[1743927663477,1.22867043,588.83,588.11,0.28801355]
[1743927663680,1.72167043,588.83,588.11,0.28801355]
[1743927664083,1.22867043,588.82,588.11,0.28801355]
[1743927664684,1.22867043,588.81,588.11,0.28801355]
[1743927664985,1.22867043,588.8,588.11,0.28801355]
[1743927665186,1.22867043,588.79,588.1,0.29558533]
[1743927665388,1.22867043,588.79,588.11,0.28802829]
[1743927665582,1.22867043,588.78,588.11,0.28802829]
[1743927665784,1.72167043,588.78,588.11,0.28802829]
[1743927665979,1.22867043,588.77,588.11,0.28802829]
[1743927666580,1.22867043,588.76,588.11,0.28802829]
[1743927667087,0.493,588.78,588.11,0.28802829]
[1743927667387,0.493,588.78,588.12,0.064]
[1743927667580,0.493,588.78,588.13,0.28802829]
[1743927667785,1.2296814,588.77,588.13,0.28802829]
[1743927668387,1.2296814,588.76,588.13,0.28802829]
[1743927668988,1.2296814,588.75,588.13,0.28802829]
[1743927669389,0.493,588.78,588.13,0.28802829]
[1743927670392,1.2298972,588.77,588.13,0.28802829]
[1743927670585,1.2298972,588.76,588.13,0.28802829]
[1743927671189,1.2298972,588.75,588.13,0.28802829]
[1743927671883,1.2298972,588.75,588.12,0.064]
[1743927672088,1.2298972,588.74,588.13,0.28803829]
[1743927672486,1.2298972,588.73,588.13,0.28803829]
[1743927672991,1.2298972,588.72,588.13,0.28803829]
[1743927673889,1.2298972,588.72,588.14,0.28803861]
[1743927674086,0.493,588.78,588.13,0.28803861]
[1743927674291,0.493,588.78,588.14,0.28803861]
[1743927674292,0.57576549,588.77,588.14,0.28803861]
[1743927674490,0.57576549,588.77,588.15,0.28803861]
[1743927674691,1.23056386,588.76,588.13,0.28803861]
[1743927674887,1.23056386,588.76,588.14,0.28803861]
[1743927675192,1.23056386,588.75,588.15,0.28803861]
[1743927675388,1.23056386,588.75,588.16,0.28803861]
[1743927675592,1.23056386,588.75,588.13,0.28803861]
[1743927675787,1.23056386,588.75,588.12,0.064]
[1743927675788,1.23056386,588.74,588.14,0.28803861]
[1743927676095,1.23056386,588.74,588.15,0.28803861]
[1743927676394,1.23056386,588.73,588.16,0.28803861]
[1743927676593,1.23056386,588.73,588.13,0.28803861]
[1743927677093,1.23056386,588.72,588.13,0.28803861]
[1743927677794,1.23056386,588.71,588.13,0.28803861]
[1743927678194,0.5759728,588.77,588.13,0.28803861]
[1743927678388,0.5759728,588.76,588.13,0.28803861]
[1743927678593,1.23108146,588.75,588.13,0.28803861]
[1743927679091,1.23108146,588.74,588.13,0.28803861]
[1743927679589,1.23108146,588.73,588.13,0.28803861]
[1743927679794,1.23108146,588.72,588.13,0.28803861]
[1743927680390,1.23108146,588.71,588.13,0.28803861]
[1743927680795,1.23108146,588.7,588.13,0.28803861]
[1743927681499,0.57617861,588.76,588.13,0.28803861]
[1743927681692,0.493,588.78,588.13,0.28803861]
[1743927681895,1.80760714,588.77,588.13,0.28803861]
[1743927682092,0.57619044,588.76,588.13,0.28803861]
[1743927682292,1.2314167,588.77,588.13,0.28803861]
[1743927682499,1.2314167,588.75,588.13,0.28803861]
[1743927682799,1.2314167,588.74,588.13,0.28803861]
[1743927683300,1.2314167,588.73,588.13,0.28803861]
[1743927683697,1.2314167,588.72,588.13,0.28803861]
[1743927684097,1.2314167,588.71,588.12,0.064]
[1743927684397,1.2314167,588.71,588.13,0.28803589]
[1743927684900,0.493,588.78,588.13,0.28803589]
[1743927685092,0.57629219,588.77,588.13,0.28803589]
[1743927685298,1.80802701,588.76,588.13,0.28803589]
[1743927685498,1.23173482,588.76,588.13,0.28803589]
[1743927686097,1.80805797,588.75,588.13,0.28803589]
[1743927686300,1.23173482,588.75,588.13,0.28803589]
[1743927686500,1.23173482,588.74,588.13,0.28803589]
[1743927686900,1.23173482,588.73,588.13,0.28803589]
[1743927687404,1.23173482,588.73,588.12,0.064]
[1743927687600,1.23173482,588.73,588.13,0.2880357]
[1743927688003,1.23173482,588.72,588.13,0.2880357]
[1743927688699,1.23173482,588.71,588.13,0.2880357]
[1743927688895,1.23173482,588.7,588.13,0.2880357]
[1743927689401,0.57651095,588.8,588.13,0.2880357]
[1743927689601,0.57651095,588.79,588.13,0.2880357]
[1743927689802,0.57651095,588.78,588.13,0.2880357]
[1743927690102,1.80874428,588.77,588.13,0.2880357]
[1743927690301,0.57651095,588.76,588.13,0.2880357]
[1743927690601,1.80874428,588.75,588.13,0.2880357]
[1743927690799,1.23223333,588.74,588.13,0.2880357]
[1743927691301,1.23223333,588.73,588.13,0.2880357]
[1743927692002,1.23223333,588.72,588.13,0.2880357]
[1743927692805,1.23223333,588.71,588.12,0.064]
[1743927693501,1.23223333,588.7,588.12,0.064]
[1743927693701,1.23223333,588.69,588.12,0.064]
[1743927694301,1.23223333,588.68,588.12,0.064]
[1743927694709,0.493,588.83,588.12,0.064]
[1743927694904,0.57663919,588.82,588.12,0.064]
[1743927695204,1.80901323,588.81,588.12,0.064]
[1743927695409,0.57663919,588.8,588.12,0.064]
[1743927695609,0.57663919,588.79,588.12,0.064]
[1743927695807,0.57663927,588.78,588.12,0.064]
[1743927696006,0.57663927,588.77,588.12,0.064]
[1743927696208,1.80901331,588.76,588.12,0.064]
[1743927696408,0.57663927,588.75,588.11,0.29560165]
[1743927696604,1.23237404,588.74,588.11,0.29560165]
[1743927696807,1.23237404,588.73,588.11,0.29560165]
[1743927697909,1.23237404,588.72,588.11,0.29560165]
[1743927698315,1.23237404,588.71,588.12,0.28802858]
[1743927698509,1.23237404,588.7,588.11,0.29560165]
[1743927698715,1.23237404,588.7,588.12,0.28802865]
[1743927700014,1.23237404,588.69,588.12,0.28802865]
[1743927700217,1.23237404,588.69,588.13,0.064]
[1743927700419,0.487,588.71,588.14,0.28802865]
[1743927701317,1.23269843,588.7,588.13,0.064]
[1743927701513,1.23269843,588.7,588.14,0.28803231]
[1743927702016,1.23269843,588.69,588.14,0.28803231]
[1743927702717,0.487,588.71,588.14,0.28803231]
[1743927702918,0.487,588.71,588.13,0.064]
[1743927703118,0.487,588.71,588.14,0.28797827]
[1743927704719,0.487,588.71,588.13,0.35956148]
[1743927704914,0.487,588.71,588.14,0.28797511]
[1743927708119,0.487,588.71,588.13,0.35955521]
[1743927708314,0.487,588.71,588.15,0.28796693]
[1743927708617,0.487,588.71,588.16,0.28796693]
[1743927708819,0.487,588.71,588.14,0.28796693]
[1743927709016,0.487,588.71,588.17,0.28796693]
[1743927709217,0.487,588.71,588.18,0.28796693]
[1743927709417,0.487,588.71,588.14,0.28796693]
[1743927709615,0.493,588.83,588.15,0.28796693]
[1743927709816,0.493,588.83,588.14,0.28796693]
[1743927710017,0.493,588.83,588.13,0.35955521]
[1743927710320,0.493,588.83,588.14,0.28796696]
[1743927710818,1.23279048,588.82,588.14,0.28796696]
[1743927711418,0.493,588.83,588.14,0.28796696]
[1743927711614,0.493,588.83,588.13,0.35955521]
[1743927711818,0.493,588.83,588.14,0.28795134]
[1743927715924,0.493,588.83,588.15,0.064]
[1743927716323,0.493,588.83,588.16,0.28795134]
[1743927716925,0.493,588.83,588.15,0.064]
[1743927717125,0.493,588.83,588.16,0.28793786]
[1743927718922,1.114,588.83,588.16,0.28793786]
[1743927721626,1.114,588.83,588.15,0.35954768]
[1743927721822,1.114,588.83,588.16,0.28792791]
[1743927723429,1.114,588.83,588.17,0.2879282]
[1743927723727,1.114,588.83,588.15,0.35954266]
[1743927723728,1.114,588.83,588.18,0.2879282]
[1743927723921,1.114,588.83,588.16,0.2879282]
[1743927731134,1.114,588.83,588.17,0.2879282]
[1743927731333,1.114,588.83,588.16,0.2879282]
[1743927731528,1.114,588.83,588.17,1.55609477]
[1743927731732,1.114,588.83,588.18,0.2879282]
[1743927733029,1.114,588.83,588.18,0.3519282]
[1743927733233,1.114,588.83,588.19,0.2879282]
[1743927735829,1.114,588.83,588.18,1.33216657]
[1743927736135,1.114,588.83,588.19,0.28792434]
[1743927741138,1.114,588.83,588.18,0.35953011]
[1743927741338,1.114,588.83,588.19,0.28794567]
[1743927744441,1.114,588.83,588.18,0.3595527]
[1743927744645,1.114,588.83,588.19,0.28793682]
[1743927745543,1.114,588.83,588.25,1.26816657]
[1743927745739,1.114,588.83,588.26,0.28793682]
[1743927748040,1.114,588.83,588.22,0.28793682]
[1743927749045,1.114,588.83,588.21,0.28793682]
[1743927749342,1.114,588.83,588.21,0.58348073]
[1743927749549,1.114,588.83,588.22,0.28793682]
[1743927751844,1.114,588.83,588.2,0.28793682]
[1743927752046,1.114,588.83,588.23,1.26816657]
[1743927752349,1.114,588.83,588.24,0.28793682]
[1743927753347,1.114,588.83,588.23,1.26816657]
[1743927753647,1.114,588.83,588.24,0.28793672]
[1743927754647,1.114,588.83,588.22,0.28793672]
[1743927755148,1.114,588.83,588.21,0.58346055]
[1743927755351,1.114,588.83,588.22,0.28793672]
[1743927757051,1.114,588.83,588.29,1.26816657]
[1743927757251,1.114,588.83,588.3,0.28793719]
[1743927759552,1.114,588.83,588.32,1.26816657]
[1743927759750,1.114,588.83,588.33,0.28793719]
[1743927760450,1.114,588.83,588.32,1.26816657]
[1743927760654,1.114,588.83,588.33,0.287959]
[1743927760854,1.23191458,588.82,588.33,0.287959]
[1743927761755,0.29551254,589.25,588.33,0.287959]
[1743927761957,0.57658807,589.24,588.33,0.287959]
[1743927762158,1.80887511,589.23,588.26,0.287959]
[1743927762356,0.57658807,589.22,588.26,0.287959]
[1743927762559,0.57658807,589.21,588.26,0.287959]
[1743927762754,0.57658807,589.2,588.26,0.287959]
[1743927763055,0.57658807,589.19,588.26,0.287959]
[1743927763259,0.57658807,589.18,588.26,0.287959]
[1743927763560,1.80887511,589.17,588.26,0.287959]
[1743927763858,1.80887511,589.16,588.26,0.287959]
[1743927764059,0.57658807,589.15,588.27,0.2879566]
[1743927764254,0.57658807,589.14,588.25,0.58345283]
[1743927764458,0.57658807,589.13,588.28,0.2879566]
[1743927764657,0.57658807,589.12,588.29,0.2879566]
[1743927764953,1.80887511,589.11,588.3,0.2879566]
[1743927765156,0.57658807,589.1,588.26,0.2879566]
[1743927765356,0.57658807,589.09,588.24,1.26816657]
[1743927765551,0.57658807,589.08,588.24,1.26816657]
[1743927765755,0.57658807,589.07,588.24,1.26816657]
[1743927765956,1.23228704,589.08,588.24,1.26816657]
[1743927765957,0.57658807,589.06,588.25,0.3520051]
[1743927766157,1.80887511,589.05,588.25,0.064]
[1743927766451,0.57658807,589.04,588.26,0.28801627]
[1743927766654,1.80887511,589.03,588.26,0.28801627]
[1743927766853,0.57658807,589.02,588.26,0.28801627]
[1743927767055,0.57658807,589.01,588.26,0.28801627]
[1743927767254,0.57658807,589.0,588.26,0.28801627]
[1743927767455,0.57658807,588.99,588.26,0.28801627]
[1743927767659,0.57658807,588.98,588.27,0.28802284]
[1743927767860,1.80887511,588.97,588.25,0.064]
[1743927768058,0.57658807,588.96,588.25,0.064]
[1743927768258,1.80887511,588.95,588.26,0.28802312]
[1743927768460,0.5763224,588.94,588.26,0.28802312]
[1743927768660,1.80860944,588.93,588.26,0.28802312]
[1743927768861,0.5763224,588.92,588.26,0.28802312]
[1743927769061,0.5763224,588.91,588.26,0.28802312]
[1743927769259,0.5763224,588.9,588.25,0.064]
[1743927769563,1.80860944,588.89,588.25,0.064]
[1743927769757,0.5763224,588.88,588.25,0.064]
[1743927769959,1.80860944,588.87,588.25,0.064]
[1743927770261,0.5763224,588.86,588.25,0.064]
[1743927770564,0.5763224,588.85,588.25,0.064]
[1743927770763,1.80860944,588.84,588.25,0.064]
[1743927771063,0.5763224,588.83,588.25,0.064]
[1743927771360,0.5763224,588.82,588.25,0.064]
[1743927771561,1.80860944,588.81,588.25,0.064]
[1743927771757,0.5763224,588.8,588.25,0.064]
[1743927771961,1.80860944,588.79,588.25,0.064]
[1743927772158,0.5763224,588.78,588.25,0.064]
[1743927772464,1.80796814,588.77,588.25,0.064]
[1743927772662,1.23228704,588.77,588.25,0.064]
[1743927772963,1.23228704,588.76,588.25,0.064]
[1743927773662,1.23228704,588.75,588.25,0.064]
[1743927774069,1.23228704,588.74,588.25,0.064]
[1743927774769,1.23228704,588.73,588.25,0.064]
[1743927774965,0.57560928,588.95,588.25,0.064]
[1743927775266,0.57560928,588.94,588.25,0.064]
[1743927775471,1.80547774,588.93,588.25,0.064]
[1743927775668,0.57560928,588.92,588.25,0.064]
[1743927775869,0.57560928,588.91,588.25,0.064]
[1743927776165,1.80547774,588.9,588.25,0.064]
[1743927776368,1.80547774,588.89,588.25,0.064]
[1743927776572,0.57560928,588.88,588.25,0.064]
[1743927776869,1.80547774,588.87,588.25,0.064]
[1743927777073,0.57560928,588.86,588.25,0.064]
[1743927777271,1.80547774,588.85,588.25,0.064]
[1743927777572,0.57560928,588.84,588.25,0.064]
[1743927777768,1.80547774,588.83,588.25,0.064]
[1743927777972,0.57560928,588.82,588.25,0.064]
[1743927778169,1.80547774,588.81,588.25,0.064]
[1743927778374,0.57560928,588.8,588.25,0.064]
[1743927778577,0.57560928,588.8,588.26,0.28802205]
[1743927778874,1.22986846,588.79,588.26,0.28802205]
[1743927779070,1.22986846,588.78,588.26,0.28802205]
[1743927779672,1.22986846,588.77,588.26,0.28802205]
[1743927780173,1.22986846,588.76,588.26,0.28802205]
[1743927780877,1.22986846,588.75,588.26,0.28802205]
[1743927781177,1.22986846,588.75,588.25,0.064]
[1743927781479,1.22986846,588.74,588.26,0.28802714]
[1743927781977,0.57560928,588.89,588.26,0.28802714]
[1743927782179,0.57560928,588.88,588.26,0.28802714]
[1743927782378,1.80485978,588.87,588.26,0.28802714]
[1743927782677,0.57560928,588.86,588.26,0.28802714]
[1743927782876,1.2292505,588.87,588.26,0.28802714]
[1743927782877,0.57560928,588.85,588.26,0.28802714]
[1743927783177,0.57560928,588.84,588.27,0.28802142]
[1743927783373,1.80485978,588.83,588.26,0.28802142]
[1743927783575,0.57560928,588.82,588.26,0.28802142]
[1743927783776,0.57560928,588.81,588.26,0.28802142]
[1743927783976,0.57560928,588.82,588.26,0.28802142]
[1743927784176,0.57560928,588.81,588.26,0.28802142]
[1743927784378,1.2292505,588.8,588.26,0.28802142]
[1743927785076,1.2292505,588.79,588.26,0.28802142]
[1743927785477,1.2292505,588.78,588.26,0.28802142]
[1743927786378,1.2292505,588.77,588.25,0.064]
[1743927786578,1.2292505,588.77,588.26,0.28802434]
[1743927786779,1.2292505,588.76,588.26,0.28802434]
[1743927787379,0.57505865,588.82,588.26,0.28802434]
[1743927787575,1.22883299,588.81,588.26,0.28802434]
[1743927788280,1.22883299,588.81,588.25,0.064]
[1743927788481,1.22883299,588.8,588.26,0.28802358]
[1743927788981,1.22883299,588.79,588.26,0.28802358]
[1743927789580,1.22883299,588.78,588.26,0.28802358]
[1743927789881,1.22883299,588.78,588.25,0.064]
[1743927790077,1.22883299,588.78,588.1,0.29560416]
[1743927790277,1.22883299,588.77,588.11,0.28802353]
[1743927790982,1.22883299,588.76,588.1,0.29560793]
[1743927791183,1.22883299,588.76,588.11,0.28802353]
[1743927792283,1.22883299,588.75,588.11,0.28802353]
[1743927792583,1.22883299,588.75,588.12,0.28803065]
[1743927792778,1.22883299,588.74,588.11,0.28803065]
[1743927792980,0.57495619,588.82,588.13,0.064]
[1743927793283,0.57495619,588.81,588.14,0.28803065]
[1743927793485,0.57495619,588.84,588.14,0.28803065]
[1743927793680,1.22899756,588.8,588.14,0.28803065]
[1743927794284,1.22899756,588.79,588.14,0.28803065]
[1743927794885,1.22899756,588.78,588.14,0.28803065]
[1743927795386,1.22899756,588.78,588.15,0.28802954]
[1743927795586,1.22899756,588.78,588.14,0.28802954]
[1743927796087,1.22899756,588.77,588.14,0.28802954]
[1743927796482,1.22899756,588.76,588.14,0.28802954]
[1743927797289,0.57503813,588.82,588.14,0.28802954]
[1743927797488,0.57503813,588.84,588.14,0.28802954]
[1743927797688,0.57503813,588.83,588.14,0.28802954]
[1743927797888,1.80405105,588.82,588.14,0.28802954]
[1743927798084,1.22901292,588.82,588.14,0.28802954]
[1743927798588,1.80405105,588.82,588.14,0.28802954]
[1743927798785,1.22901292,588.82,588.13,0.064]
[1743927798992,1.80405105,588.81,588.14,0.28802356]
[1743927799290,1.22901292,588.8,588.14,0.28802356]
[1743927799990,1.22901292,588.79,588.14,0.28802356]